fUST/lending_fUST_20240824
["ID","MTS","AMOUNT","RATE_DAILY","PERIOD"]
[335690234,1724433046741,-876.823967,0.00017961,2]
[335690235,1724433046751,-1369.39331,0.00017961,2]
[335690236,1724433046761,-5180.604428,0.00017961,2]
[335690237,1724433046770,-5180.604428,0.00017961,2]
[335690238,1724433046780,-5180.604428,0.00017961,2]
[335690239,1724433046790,-5180.604428,0.00017961,2]
[335690240,1724433046801,-151.0,0.00017961,2]
[335690241,1724433046811,-151.0,0.00017961,2]
[335690242,1724433046822,-151.0,0.00017961,2]
[335690243,1724433046833,-151.0,0.00017961,2]
[335690244,1724433046843,-151.0,0.00017961,2]
[335690245,1724433046853,-897.891921,0.00017961,2]
[335690246,1724433046864,-897.891921,0.00017961,2]
[335690247,1724433046874,-2076.824883,0.00017961,2]
[335690248,1724433046883,-2076.824883,0.00017961,2]
[335690249,1724433046894,-2076.824883,0.00017961,2]
[335690250,1724433046903,-2076.824883,0.00017961,2]
[335690251,1724433046913,-1735.245779,0.00017961,2]
[335690252,1724433046922,-151.0,0.00017961,2]
[335690253,1724433046938,-151.0,0.00017961,2]
[335690254,1724433046947,-1735.245779,0.00017961,2]
[335690255,1724433046957,-9709.88061747,0.00017962,2]
[335690256,1724433046991,-1583.670468,0.00017888,2]
[335690257,1724433047001,-2190.30765011,0.00017962,2]
[335690258,1724433047013,-21651.01531594,0.00017962,2]
[335690277,1724433760236,495.85253841,0.00025,120]
[335690278,1724433762577,1983.21177098,0.000269,120]
[335690280,1724433777667,460.77250919,0.00021772,60]
[335690281,1724433793248,323.0,0.00017942,120]
[335690282,1724433793353,161.0,0.00017942,120]
[335690283,1724433793454,150.5,0.00017942,120]
[335690284,1724433793746,323.0,0.00017932,120]
[335690285,1724433793826,161.0,0.00017932,120]
[335690286,1724433793977,150.5,0.00017942,120]
[335690287,1724433794006,959.0,0.00017942,120]
[335690288,1724433794037,150.5,0.00017932,120]
[335690289,1724433794210,323.0,0.00017922,120]
[335690290,1724433794300,161.0,0.00017922,120]
[335690291,1724433794444,959.0,0.00017932,120]
[335690292,1724433794478,150.5,0.00017932,120]
[335690293,1724433794523,150.5,0.00017922,120]
[335690294,1724433794690,323.0,0.0002469,120]
[335690295,1724433794910,959.0,0.00017922,120]
[335690296,1724433794973,150.5,0.00017922,120]
[335690297,1724433795016,150.5,0.0002469,120]
[335690298,1724433795146,323.0,0.0002468,120]
[335690299,1724433795364,959.0,0.0002469,120]
[335690300,1724433795408,150.5,0.0002469,120]
[335690301,1724433795439,150.5,0.0002468,120]
[335690302,1724433795604,323.0,0.0002467,120]
[335690304,1724433795861,251.62,0.0002468,120]
[335690305,1724433795891,263.84,0.0002467,120]
[335690306,1724433795930,959.0,0.0002468,120]
[335690307,1724433796387,959.0,0.0002467,120]
[335690308,1724433797065,161.0,0.0002469,120]
[335690309,1724433797317,161.0,0.0002468,120]
[335690310,1724433797487,500.0,0.00027,120]
[335690311,1724433797794,161.0,0.0002467,120]
[335690314,1724433809244,500.0,0.00027,120]
[335690315,1724433817823,383.97709099,0.00021772,60]
[335690318,1724433846468,500.0,0.00027,120]
[335690319,1724433856533,433.60877131,0.00015,6]
[335690320,1724433862979,500.0,0.00024,120]
[335690321,1724433872387,273.37336231,0.00015,6]
[335690323,1724433887859,546.74672462,0.00015,6]
[335690324,1724433903830,273.37336231,0.00015,6]
[335690328,1724433913028,327.0,0.00017932,120]
[335690329,1724433913504,327.0,0.00017922,120]
[335690330,1724433913926,513.0,0.00017932,120]
[335690331,1724433914143,327.0,0.00017912,120]
[335690333,1724433914395,384.0,0.00017932,120]
[335690334,1724433914460,513.0,0.00017922,120]
[335690335,1724433914603,327.0,0.0002469,120]
[335690336,1724433914887,384.0,0.00017922,120]
[335690337,1724433914928,513.0,0.00017912,120]
[335690338,1724433914966,500.0,0.00027,120]
[335690339,1724433915069,327.0,0.0002468,120]
[335690340,1724433915349,384.0,0.00017912,120]
[335690341,1724433915393,513.0,0.0002469,120]
[335690342,1724433915559,327.0,0.0002467,120]
[335690343,1724433915819,384.0,0.0002469,120]
[335690344,1724433915850,513.0,0.0002468,120]
[335690345,1724433916349,513.0,0.0002467,120]
[335690346,1724433916396,384.0,0.0002468,120]
[335690347,1724433916808,384.0,0.0002467,120]
[335690348,1724433919005,273.37336231,0.00015,6]
[335690350,1724433924030,500.0,0.00027,120]
[335690354,1724433933237,500.0,0.00027,120]
[335690355,1724433935120,273.37336231,0.00015,6]
[335690356,1724433942703,500.0,0.00027,120]
[335690357,1724433951664,273.37336231,0.00015,6]
[335690359,1724433952639,500.0,0.00027,120]
[335690362,1724433969012,273.37336231,0.00015,6]
[335690363,1724433985062,273.37336231,0.0001211,2]
[335690364,1724433997144,-180.48325841,0.00012985,2]
[335690365,1724434001295,273.37336231,0.0001211,2]
[335690371,1724434016204,258.33917251,0.00025,120]
[335690372,1724434016971,383.97709099,0.00015,60]
[335690374,1724434031836,546.74672462,0.0001211,2]
[335690376,1724434034725,153.0,0.00017942,120]
[335690377,1724434035230,153.0,0.00017932,120]
[335690378,1724434035756,153.0,0.00017922,120]
[335690379,1724434036224,153.0,0.0002469,120]
[335690380,1724434036679,153.0,0.0002468,120]
[335690381,1724434037166,153.0,0.0002467,120]
[335690386,1724434063072,273.37336231,0.0001211,2]
[335690400,1724434073474,200.05206441,0.00018182,60]
[335690402,1724434078587,210.0,0.00025,120]
[335690403,1724434079177,273.37336231,0.0001211,2]
[335690405,1724434092400,16324.88629594,0.0001211,2]
[335690406,1724434095021,273.37336231,0.0001211,2]
[335690426,1724434104262,751.53941528,0.0001211,2]
[335690427,1724434104506,188.0,0.0002,120]
[335690428,1724434104957,1309.44591287,0.0001211,2]
[335690429,1724434110946,297.01564838,7e-05,120]
[335690430,1724434111092,273.37336231,0.0001211,2]
[335690431,1724434118462,200.05206441,0.00014679,60]
[335690432,1724434118900,504.91947228,0.00021,120]
[335690433,1724434119504,990.63074865,0.00027,120]
[335690436,1724434121317,150.0,2.75e-05,120]
[335690440,1724434122532,1390.51378092,0.00025,120]
[335690441,1724434122717,172.0071926,0.00025,120]
[335690442,1724434123882,687.37223447,0.00027,120]
[335690443,1724434123939,1143.98436756,0.00027,120]
[335690444,1724434124292,945.00777589,0.0001,120]
[335690445,1724434124364,329.29576613,0.00027,120]
[335690446,1724434127572,273.37336231,0.0001211,2]
[335690448,1724434142896,273.37336231,0.0001211,2]
[335690449,1724434148112,-971.56065913,0.00012782,2]
[335690453,1724434152175,-1742.10342186,0.00012782,2]
[335690454,1724434152198,-862.83835129,0.00013,2]
[335690455,1724434152220,-2143.62270035,0.00013597,2]
[335690456,1724434152241,-155.11962218,0.00013597,2]
[335690457,1724434152262,-265.91867459,0.00013599,2]
[335690458,1724434152283,-300.0,0.00013687,2]
[335690459,1724434152303,-300.0,0.00013687,2]
[335690460,1724434152323,-404.59278011,0.00013688,2]
[335690461,1724434152344,-493.47055315,0.00013688,2]
[335690462,1724434152364,-1145.683616,0.00013699,2]
[335690463,1724434152386,-8806.76654804,0.00013971,2]
[335690464,1724434152407,-7013.41255393,0.00013971,2]
[335690465,1724434152429,-166.666666,0.00014073,2]
[335690466,1724434152452,-166.666666,0.00014125,2]
[335690467,1724434152475,-166.666666,0.00014177,2]
[335690468,1724434152499,-166.666666,0.0001423,2]
[335690469,1724434152523,-500.0,0.00014244,2]
[335690470,1724434152544,-500.0,0.00014244,2]
[335690471,1724434152565,-500.0,0.00014244,2]
[335690472,1724434152586,-500.0,0.00014244,2]
[335690473,1724434152607,-156.71065894,0.00014244,2]
[335690474,1724434152627,-521.29251267,0.00014245,2]
[335690475,1724434152647,-303.88315392,0.00014245,2]
[335690476,1724434152667,-1766.47659697,0.00014245,2]
[335690477,1724434152688,-422.48065002,0.00014245,2]
[335690478,1724434152708,-9663.17336824,0.00014245,2]
[335690479,1724434152728,-2166.25640825,0.00014245,2]
[335690480,1724434152748,-665.72637695,0.00014245,2]
[335690481,1724434152769,-1613.45959463,0.00014245,2]
[335690483,1724434152792,-188.56371582,0.00014245,2]
[335690484,1724434152813,-190.14748204,0.00014245,2]
[335690485,1724434152833,-304.30774912,0.00014245,2]
[335690486,1724434152854,-180.91774597,0.00014245,2]
[335690487,1724434152878,-154.74467129,0.00014245,2]
[335690488,1724434152898,-154.74467129,0.00014245,2]
[335690489,1724434152919,-154.98251573,0.00014245,2]
[335690490,1724434152940,-154.74467129,0.00014245,2]
[335690491,1724434152961,-157.15769108,0.00014245,2]
[335690492,1724434152981,-239.34774772,0.00014245,2]
[335690493,1724434153002,-534.85669911,0.00014245,2]
[335690494,1724434153022,-156.78863559,0.00014245,2]
[335690495,1724434153043,-196.88638747,0.00014245,2]
[335690496,1724434153063,-210.32349268,0.00014245,2]
[335690497,1724434153084,-160.77115221,0.00014245,2]
[335690498,1724434153107,-580.315421,0.00014247,2]
[335690499,1724434153133,-166.666666,0.00014282,2]
[335690500,1724434153158,-166.666666,0.00014334,2]
[335690501,1724434153180,-500.0,0.00014386,2]
[335690502,1724434153207,-500.0,0.00014386,2]
[335690503,1724434153230,-166.666666,0.00014387,2]
[335690504,1724434153255,-166.666666,0.00014439,2]
[335690505,1724434153279,-166.666666,0.00014492,2]
[335690506,1724434153302,-195.13349832,0.00014519,2]
[335690507,1724434153324,-320.27103328,0.00014519,2]
[335690508,1724434153347,-3092.64278727,0.00014519,2]
[335690509,1724434153371,-780.35335208,0.00014519,2]
[335690510,1724434153391,-154.74467129,0.00014519,2]
[335690511,1724434153413,-223.52112672,0.00014519,2]
[335690512,1724434153434,-1500.0,0.00014519,2]
[335690513,1724434153456,-279.22166571,0.00014519,2]
[335690514,1724434153478,-520.70014907,0.00014519,2]
[335690515,1724434153503,-154.74467129,0.00014519,2]
[335690516,1724434153525,-688.676981,0.00014519,2]
[335690517,1724434153547,-495.34936838,0.00014519,2]
[335690518,1724434153569,-811.29992625,0.00014519,2]
[335690519,1724434153592,-166.666666,0.00014544,2]
[335690520,1724434153614,-166.666666,0.00014596,2]
[335690521,1724434153652,-166.666666,0.00014649,2]
[335690522,1724434153675,-805.65141602,0.00014679,3]
[335690523,1724434153700,-191.60607295,0.00014679,2]
[335690524,1724434153724,-166.666666,0.00014701,2]
[335690525,1724434153746,-166.666666,0.00014753,2]
[335690526,1724434153769,-3497.20887724,0.000148,2]
[335690527,1724434153795,-166.666666,0.00014806,2]
[335690528,1724434153818,-3000.0,0.00014825,2]
[335690529,1724434153842,-24900.0,0.00014889,2]
[335690530,1724434153865,-1000.0,0.00014934,2]
[335690531,1724434153888,-1000.0,0.00014934,2]
[335690532,1724434153911,-156.04172297,0.0001495,2]
[335690533,1724434153935,-38419.87421584,0.0001499,2]
[335690534,1724434155065,-412.89428066,0.00013599,2]
[335690535,1724434155089,-174.90537191,0.00013971,2]
[335690536,1724434155113,-507.15691616,0.0001499,2]
[335690537,1724434155137,-154.74467129,0.00015,2]
[335690538,1724434155160,-420.0,0.00015,2]
[335690539,1724434155182,-420.0,0.00015056,2]
[335690540,1724434155205,-380.3332564,0.000151,2]
[335690541,1724434155343,569.78751732,0.00013599,2]
[335690542,1724434155427,181.0,0.00017801,120]
[335690543,1724434155482,181.0,0.00017791,120]
[335690544,1724434155977,181.0,0.00017781,120]
[335690545,1724434156471,181.0,0.0002479,120]
[335690546,1724434156972,181.0,0.0002478,120]
[335690548,1724434157430,181.0,0.0002477,120]
[335690549,1724434158459,1309.44591287,0.00014679,2]
[335690550,1724434159288,273.37336231,0.0001211,2]
[335690551,1724434161769,154.74467129,0.00014245,2]
[335690552,1724434161852,154.77557542,0.00014679,2]
[335690554,1724434169899,16324.88629594,0.0001211,2]
[335690555,1724434173052,154.74467129,0.00014245,2]
[335690557,1724434175003,150.5,0.00017801,120]
[335690558,1724434175296,273.37336231,0.0001211,2]
[335690559,1724434175930,1098.82897896,0.00014679,2]
[335690560,1724434175987,150.5,0.00017791,120]
[335690561,1724434176071,150.5,0.00017781,120]
[335690562,1724434176110,32301.53416907,0.00014245,2]
[335690563,1724434176471,168.86,0.0002479,120]
[335690566,1724434191069,178.41186059,0.0001211,2]
[335690567,1724434191094,94.96150172,0.0001211,2]
[335690569,1724434195466,200.05206441,0.00014679,60]
[335690584,1724434206704,546.74672462,0.0001211,2]
[335690589,1724434221960,546.74672462,0.0001211,2]
[335690629,1724434231751,-534.25299583,0.00014245,2]
[335690662,1724434237745,273.37336231,0.0001211,2]
[335690667,1724434237792,-154.77557233,0.00014245,2]
[335690669,1724434237802,-574.518799,0.00014247,2]
[335690671,1724434237814,-301.61607326,0.00014679,2]
[335690672,1724434237825,-190.14748204,0.00014679,2]
[335690673,1724434237835,-494.34358006,0.00014679,2]
[335690674,1724434237844,-2143.62270035,0.00014679,2]
[335690675,1724434237855,-1500.0,0.00014679,2]
[335690676,1724434237864,-701.43240675,0.00014679,2]
[335690677,1724434237873,-1309.44591287,0.00014679,2]
[335690678,1724434237882,-991.38842768,0.00014679,2]
[335690679,1724434237892,-8306.68707781,0.00014679,2]
[335690680,1724434237914,-1356.48629043,0.00014679,2]
[335690681,1724434237925,-210.15630356,0.00014679,2]
[335690682,1724434237936,-157.03447588,0.00014679,2]
[335690683,1724434237945,-422.15467312,0.00014679,2]
[335690684,1724434237957,-16324.88629594,0.00014679,2]
[335690685,1724434237967,-569.55611374,0.00014679,2]
[335690686,1724434237976,-279.48007373,0.00015,2]
[335690687,1724434237985,-162.2041754,0.00015888,2]
[335690688,1724434237995,-2388.28,0.00016158,2]
[335690689,1724434238005,-500.0,0.00016438,2]
[335690690,1724434238016,-184.0789621,0.00016912,2]
[335690691,1724434238026,-172.0985,0.00016913,2]
[335690692,1724434238037,-311.574515,0.00016913,2]
[335690693,1724434238046,-162.612826,0.00016913,2]
[335690694,1724434238056,-153.956349,0.00016913,2]
[335690695,1724434238065,-173.064765,0.00016913,2]
[335690696,1724434238074,-163.526648,0.00016913,2]
[335690697,1724434238084,-161.076334,0.00016913,2]
[335690698,1724434238093,-1000.0,0.00017,17]
[335690699,1724434238103,-151.0,0.00017048,2]
[335690700,1724434238113,-1000.0,0.00017124,2]
[335690701,1724434238124,-311.574515,0.00017125,2]
[335690702,1724434238135,-173.064765,0.00017125,2]
[335690703,1724434238145,-151.0,0.00017167,2]
[335690704,1724434238155,-172.0985,0.00017195,2]
[335690705,1724434238164,-522.0,0.0001721,2]
[335690706,1724434238173,-151.0,0.00017287,2]
[335690707,1724434238183,-306.0,0.00017331,2]
[335690708,1724434238191,-311.574515,0.00017336,2]
[335690709,1724434238201,-162.612826,0.00017336,2]
[335690710,1724434238211,-173.064765,0.00017336,2]
[335690711,1724434238221,-151.0,0.00017407,2]
[335690712,1724434238230,-172.0985,0.00017477,2]
[335690713,1724434238240,-150.0,0.000175,2]
[335690714,1724434238249,-600.0,0.00017517,2]
[335690715,1724434238259,-151.0,0.00017527,2]
[335690716,1724434238269,-311.574515,0.00017548,2]
[335690717,1724434238278,-173.064765,0.00017548,2]
[335690718,1724434238287,-151.95554166,0.00017598,2]
[335690719,1724434238297,-1111.52616931,0.00017599,2]
[335690720,1724434238306,-151.0,0.00017647,2]
[335690721,1724434238316,-3400.29718569,0.00017659,2]
[335690722,1724434238324,-38927.031132,0.00017662,2]
[335690723,1724434238336,-488.82311791,0.00017677,2]
[335690724,1724434238346,-5624.56460202,0.00017696,2]
[335690725,1724434238355,-600.0,0.000177,2]
[335690726,1724434238364,-11999.999999,0.000177,2]
[335690727,1724434238375,-3400.29718565,0.0001771,2]
[335690728,1724434238385,-151.0,0.00017748,2]
[335690729,1724434238395,-38927.031132,0.00017748,2]
[335690730,1724434238404,-38927.031132,0.00017749,2]
[335690731,1724434238413,-500.0,0.00017755,2]
[335690732,1724434238422,-457.31303388,0.00017755,2]
[335690733,1724434238431,-500.0,0.00017755,2]
[335690734,1724434238440,-500.0,0.00017755,2]
[335690735,1724434238450,-500.0,0.00017755,2]
[335690736,1724434238459,-500.0,0.00017755,2]
[335690737,1724434238469,-500.0,0.00017755,2]
[335690738,1724434238478,-500.0,0.00017755,2]
[335690739,1724434238487,-500.0,0.00017755,2]
[335690740,1724434238496,-500.0,0.00017755,2]
[335690741,1724434238505,-500.0,0.00017755,2]
[335690742,1724434238515,-464.51947987,0.00017755,2]
[335690743,1724434238524,-500.0,0.00017755,2]
[335690744,1724434238534,-500.0,0.00017755,2]
[335690745,1724434238543,-500.0,0.00017755,2]
[335690746,1724434238553,-500.0,0.00017755,2]
[335690747,1724434238562,-428.41690517,0.00017755,2]
[335690748,1724434238572,-500.0,0.00017755,2]
[335690749,1724434238581,-26816.19111118,0.00017756,2]
[335690750,1724434238591,-1000.0,0.00017759,2]
[335690751,1724434238599,-172.0985,0.00017759,2]
[335690752,1724434238609,-163.526648,0.00017759,2]
[335690753,1724434238618,-161.076334,0.00017759,2]
[335690754,1724434238628,-311.574515,0.00017759,2]
[335690755,1724434238637,-162.612826,0.00017759,2]
[335690756,1724434238646,-173.064765,0.00017759,2]
[335690757,1724434238656,-1416.0,0.00017759,2]
[335690758,1724434238665,-34208.0,0.00017759,2]
[335690759,1724434238675,-150.0,0.00017759,2]
[335690760,1724434238684,-3400.29718565,0.00017761,2]
[335690761,1724434238694,-151.0,0.00017767,2]
[335690762,1724434238703,-365.03478322,0.00017773,2]
[335690763,1724434238712,-491.41419832,0.00017773,2]
[335690764,1724434238721,-300.0,0.000178,7]
[335690765,1724434238731,-3400.29718565,0.00017811,2]
[335690766,1724434238740,-88888.0,0.00017852,2]
[335690767,1724434238750,-38927.031132,0.00017852,2]
[335690768,1724434238759,-151.0,0.00017852,2]
[335690769,1724434238769,-421.412362,0.00017852,2]
[335690770,1724434238778,-421.412362,0.00017852,2]
[335690771,1724434238789,-20258.36117004,0.00017862,2]
[335690772,1724434238799,-3135.293401,0.00017862,2]
[335690773,1724434238810,-3400.29718565,0.00017862,2]
[335690774,1724434238824,-1000.0,0.00017867,2]
[335690775,1724434238834,-500.0,0.00017873,2]
[335690776,1724434238846,-500.0,0.00017873,2]
[335690777,1724434238859,-500.0,0.00017873,2]
[335690778,1724434238870,-500.0,0.00017873,2]
[335690779,1724434238879,-504.70643128,0.00017873,2]
[335690780,1724434238888,-600.0,0.00017882,2]
[335690781,1724434238899,-151.0,0.00017887,2]
[335690782,1724434238910,-1000.0,0.00017897,2]
[335690783,1724434238921,-150.112233,0.000179,2]
[335690784,1724434238933,-150.112233,0.000179,2]
[335690785,1724434238944,-24040.68230661,0.00017931,2]
[335690827,1724434240937,-196.73661437,0.00014519,2]
[335690828,1724434240950,-2116.45964785,0.00014519,2]
[335690829,1724434240962,-780.046752,0.00014519,2]
[335690830,1724434240972,-151.0,0.00017931,2]
[335690831,1724434240982,-14886.34882539,0.00017931,2]
[335690832,1724434240991,-3200.0,0.00017934,2]
[335690833,1724434241002,-38927.031132,0.00017942,2]
[335690834,1724434241011,-151.0,0.00017942,2]
[335690835,1724434241020,-813.570931,0.00017942,2]
[335690836,1724434241030,-813.570931,0.00017942,2]
[335690837,1724434241041,-2546.27621,0.00017942,2]
[335690838,1724434241051,-2546.27621,0.00017942,2]
[335690839,1724434241061,-4982.926965,0.00017942,2]
[335690840,1724434241071,-4982.926965,0.00017942,2]
[335690841,1724434241080,-151.0,0.00017942,2]
[335690842,1724434241089,-2090.200606,0.00017942,2]
[335690843,1724434241098,-2090.200606,0.00017942,2]
[335690844,1724434241107,-421.412362,0.00017942,2]
[335690845,1724434241117,-3108.362656,0.00017942,2]
[335690846,1724434241128,-421.412362,0.00017942,2]
[335690847,1724434241137,-3108.362656,0.00017942,2]
[335690848,1724434241147,-224.34893,0.00017942,2]
[335690849,1724434241156,-224.34893,0.00017942,2]
[335690850,1724434241165,-151.0,0.00017952,2]
[335690851,1724434241174,-151.0,0.00017952,2]
[335690852,1724434241184,-151.0,0.00017952,2]
[335690853,1724434241194,-151.0,0.00017952,2]
[335690854,1724434241203,-151.0,0.00017952,2]
[335690855,1724434241212,-151.0,0.00017952,2]
[335690856,1724434241222,-613.776777,0.00017952,2]
[335690857,1724434241231,-613.776777,0.00017952,2]
[335690858,1724434241240,-448.94596,0.00017952,2]
[335690859,1724434241250,-448.94596,0.00017952,2]
[335690860,1724434241261,-151.0,0.00017952,2]
[335690861,1724434241271,-151.0,0.00017952,2]
[335690862,1724434241280,-151.0,0.00017952,2]
[335690863,1724434241293,-151.0,0.00017952,2]
[335690864,1724434241302,-187.357909,0.00017952,2]
[335690865,1724434241311,-187.357909,0.00017952,2]
[335690866,1724434241320,-867.622889,0.00017952,2]
[335690867,1724434241330,-206.141061,0.00017952,2]
[335690868,1724434241339,-867.622889,0.00017952,2]
[335690869,1724434241348,-206.141061,0.00017952,2]
[335690870,1724434241358,-151.0,0.00017952,2]
[335690871,1724434241367,-151.0,0.00017952,2]
[335690872,1724434241376,-151.0,0.00017952,2]
[335690873,1724434241385,-151.0,0.00017952,2]
[335690874,1724434241394,-151.0,0.00017952,2]
[335690875,1724434241404,-3329.055522,0.00017952,2]
[335690876,1724434241414,-151.0,0.00017952,2]
[335690877,1724434241423,-3329.055522,0.00017952,2]
[335690878,1724434241433,-151.0,0.00017952,2]
[335690879,1724434241442,-151.0,0.00017952,2]
[335690880,1724434241451,-723.10050126,0.00017952,2]
[335690881,1724434241463,-914.73628774,0.00017952,2]
[335690882,1724434241472,-1594.42771886,0.00017952,2]
[335690883,1724434241484,-43.40907014,0.00017952,2]
[335690884,1724434241493,-151.0,0.00017952,2]
[335690885,1724434241503,-151.0,0.00017952,2]
[335690886,1724434241512,-958.575317,0.00017952,2]
[335690887,1724434241521,-1425.303421,0.00017952,2]
[335690888,1724434241531,-958.575317,0.00017952,2]
[335690889,1724434241541,-1425.303421,0.00017952,2]
[335690890,1724434241551,-3443.734282,0.00017952,2]
[335690891,1724434241560,-3443.734282,0.00017952,2]
[335690892,1724434241570,-341.122571,0.00017952,2]
[335690893,1724434241579,-551.988409,0.00017952,2]
[335690894,1724434241588,-551.988409,0.00017952,2]
[335690895,1724434241597,-341.122571,0.00017952,2]
[335690896,1724434241607,-151.0,0.00017952,2]
[335690897,1724434241617,-813.570931,0.00017952,2]
[335690898,1724434241626,-813.570931,0.00017952,2]
[335690899,1724434241635,-2546.27621,0.00017952,2]
[335690900,1724434241645,-2546.27621,0.00017952,2]
[335690901,1724434241654,-4982.926965,0.00017952,2]
[335690902,1724434241664,-4982.926965,0.00017952,2]
[335690903,1724434241673,-2090.200606,0.00017952,2]
[335690904,1724434241683,-2090.200606,0.00017952,2]
[335690905,1724434241693,-3108.362656,0.00017952,2]
[335690906,1724434241702,-3108.362656,0.00017952,2]
[335690907,1724434241711,-224.34893,0.00017952,2]
[335690909,1724434241722,-224.34893,0.00017952,2]
[335690911,1724434241731,-199.8400299,0.00017961,2]
[335690913,1724434241741,-7953.3626658,0.00017961,2]
[335690915,1724434241750,-151.0,0.00017961,2]
[335690917,1724434241760,-151.0,0.00017961,2]
[335690919,1724434241769,-151.0,0.00017961,2]
[335690921,1724434241779,-151.0,0.00017961,2]
[335690923,1724434241791,-221.279929,0.00017961,2]
[335690925,1724434241800,-151.0,0.00017961,2]
[335690927,1724434241809,-377.181272,0.00017961,2]
[335690929,1724434241822,-377.181272,0.00017961,2]
[335690931,1724434241831,-21975.11489765,0.00017962,9]
[335690933,1724434241840,-163.69781,0.00017962,2]
[335690935,1724434241851,-151.0,0.00017962,2]
[335690937,1724434241862,-151.0,0.00017962,2]
[335690939,1724434241871,-151.0,0.00017962,2]
[335690941,1724434241881,-151.0,0.00017962,2]
[335690943,1724434241892,-151.0,0.00017962,2]
[335690945,1724434241905,-151.0,0.00017962,2]
[335690947,1724434241915,-151.0,0.00017962,2]
[335690949,1724434241924,-151.0,0.00017962,2]
[335690951,1724434241934,-151.0,0.00017962,2]
[335690953,1724434241944,-151.0,0.00017962,2]
[335690955,1724434241953,-151.0,0.00017962,2]
[335690957,1724434241963,-151.0,0.00017962,2]
[335690959,1724434241972,-151.0,0.00017962,2]
[335690961,1724434241981,-151.0,0.00017962,2]
[335690963,1724434241990,-151.0,0.00017962,2]
[335690964,1724434242000,-151.0,0.00017962,2]
[335690965,1724434242010,-377.181272,0.00017962,2]
[335690966,1724434242019,-377.181272,0.00017962,2]
[335690967,1724434242029,-377.181272,0.00017962,2]
[335690968,1724434242038,-377.181272,0.00017962,2]
[335690969,1724434242048,-377.181272,0.00017962,2]
[335690970,1724434242057,-377.181272,0.00017962,2]
[335690971,1724434242067,-310.0,0.00017962,2]
[335690972,1724434242076,-310.0,0.00017962,2]
[335690973,1724434242085,-310.0,0.00017962,2]
[335690974,1724434242095,-310.0,0.00017962,2]
[335690975,1724434242105,-310.0,0.00017962,2]
[335690976,1724434242114,-310.0,0.00017962,2]
[335690977,1724434242124,-265.128871,0.00017962,2]
[335690978,1724434242133,-180.502437,0.00017962,2]
[335690979,1724434242143,-180.502437,0.00017962,2]
[335690980,1724434242152,-180.502437,0.00017962,2]
[335690981,1724434242161,-180.502437,0.00017962,2]
[335690982,1724434242170,-180.502437,0.00017962,2]
[335690983,1724434242179,-180.502437,0.00017962,2]
[335690984,1724434242188,-151.0,0.00017962,2]
[335690985,1724434242197,-151.0,0.00017962,2]
[335690986,1724434242207,-247.382207,0.00017962,2]
[335690987,1724434242215,-151.0,0.00017962,2]
[335690988,1724434242225,-151.0,0.00017962,2]
[335690989,1724434242234,-151.0,0.00017962,2]
[335690990,1724434242245,-151.0,0.00017962,2]
[335690992,1724434242254,-151.0,0.00017962,2]
[335690993,1724434242264,-151.0,0.00017962,2]
[335690994,1724434242274,-151.0,0.00017962,2]
[335690995,1724434242283,-151.0,0.00017962,2]